Workbook

Sheet Economic Times
A1: https://economictimes.indiatimes.com/ht-media-ltd/quarterly/companyid-16087.cms
A2: https://economictimes.indiatimes.com/ht-media-ltd/profitandlose/companyid-16087.cms
A3: https://economictimes.indiatimes.com/ht-media-ltd/cashflow/companyid-16087.cms
A4: https://economictimes.indiatimes.com/ht-media-ltd/balancesheet/companyid-16087.cms
A6: https://economictimes.indiatimes.com/tata-motors-ltd/profitandlose/companyid-12934.cms
A7: https://economictimes.indiatimes.com/reliance-industries-ltd/balancesheet/companyid-13215.cms
A8: https://economictimes.indiatimes.com/bharti-airtel-ltd/balancesheet/companyid-2718.cms

Sheet Money Control
B1: URL's without adjustment | E1: https://www.moneycontrol.com/financials/tatamotors/balance-sheet/TM03
E2: https://www.moneycontrol.com/financials/tatamotors/profit-lossVI/TM03
E4: https://www.moneycontrol.com/financials/htmedia/balance-sheet/HT
E5: https://www.moneycontrol.com/financials/relianceindustries/ratios/RI
E6: https://www.moneycontrol.com/financials/relianceindustries/cash-flow/RI
E9: https://www.moneycontrol.com/financials/
E10: /balance-sheet/
E11: /profit-lossVI/
E12: /ratios/
E13: /cash-flow/
E15: Financial Statement Code | H15: 4 | I15: FS Code | O15: Company Code | P15: 3
D17: =Company&" BS" -> relianceindustries BS | E17: =$E$9&Company&E10&Symbol -> https://www.moneycontrol.com/financials/relianceindustries/balance-sheet/RI | O17: Symbol | P17: Company
D18: =Company&" PL" -> relianceindustries PL | E18: =$E$9&Company&E11&Symbol -> https://www.moneycontrol.com/financials/relianceindustries/profit-lossVI/RI | O18: TM03 | P18: tatamotors
D19: =Company&" Ratios" -> relianceindustries Ratios | E19: =$E$9&Company&E12&Symbol -> https://www.moneycontrol.com/financials/relianceindustries/ratios/RI | O19: HT | P19: htmedia
D20: =Company&" CF" -> relianceindustries CF | E20: =$E$9&Company&E13&Symbol -> https://www.moneycontrol.com/financials/relianceindustries/cash-flow/RI | O20: RI | P20: relianceindustries
A22: Applied URL | D22: =INDEX(D17:D20,H15) -> relianceindustries CF | E22: =INDEX(E17:E20,H15) -> https://www.moneycontrol.com/financials/relianceindustries/cash-flow/RI | O22: Symbol | P22: Company
O23: =INDEX(O18:O20,$P$15) -> RI | P23: =INDEX(P18:P20,$P$15) -> relianceindustries

Sheet Summary
C2: Return On Capital Employed(%)
C3: Return On Net Worth(%)
C4: Investment Valuation Ratios | G4: Return On Capital Employed(%)
H5: Index
G6: Match
G7: =MATCH($C$4,INDIRECT("'"&E8&"'!A:A"),0)-2 -> 367 | H7: =INDEX(INDIRECT("'"&$E8&"'!B:B"),$G7) -> Mar '18 | I7: =INDEX(INDIRECT("'"&$E8&"'!C:C"),$G7) -> Mar '17 | J7: =INDEX(INDIRECT("'"&$E8&"'!D:D"),$G7) -> Mar '16 | K7: =INDEX(INDIRECT("'"&$E8&"'!E:E"),$G7) -> Mar '15 | L7: =INDEX(INDIRECT("'"&$E8&"'!F:F"),$G7) -> Mar '14
C8: ='Money Control'!P18 -> tatamotors | D8: Ratios | E8: =C8&D8 -> tatamotors Ratios | G8: =MATCH($G$4,INDIRECT("'"&E8&"'!A:A"),0) -> 384 | H8: =INDEX(INDIRECT("'"&$E8&"'!B:B"),$G8) -> 4.84 | I8: =INDEX(INDIRECT("'"&$E8&"'!C:C"),$G8) -> -1.11 | J8: =INDEX(INDIRECT("'"&$E8&"'!D:D"),$G8) -> 5.38 | K8: =INDEX(INDIRECT("'"&$E8&"'!E:E"),$G8) -> -5.61 | L8: =INDEX(INDIRECT("'"&$E8&"'!F:F"),$G8) -> 2.52
C9: ='Money Control'!P19 -> htmedia | D9: Ratios | E9: =C9&D9 -> htmedia Ratios | G9: =MATCH($G$4,INDIRECT("'"&E9&"'!A:A"),0) -> 384 | H9: =INDEX(INDIRECT("'"&$E9&"'!B:B"),$G9) -> 11.25 | I9: =INDEX(INDIRECT("'"&$E9&"'!C:C"),$G9) -> 5.31 | J9: =INDEX(INDIRECT("'"&$E9&"'!D:D"),$G9) -> 6.35 | K9: =INDEX(INDIRECT("'"&$E9&"'!E:E"),$G9) -> 10.1 | L9: =INDEX(INDIRECT("'"&$E9&"'!F:F"),$G9) -> 13.73
C10: ='Money Control'!P20 -> relianceindustries | D10: Ratios | E10: relianceindustries Ratios | G10: =MATCH($G$4,INDIRECT("'"&E10&"'!A:A"),0) -> 384 | H10: =INDEX(INDIRECT("'"&$E10&"'!B:B"),$G10) -> 12.24 | I10: =INDEX(INDIRECT("'"&$E10&"'!C:C"),$G10) -> 11.16 | J10: 11.47 | K10: =INDEX(INDIRECT("'"&$E10&"'!E:E"),$G10) -> 10.42 | L10: 10.97
G12: =C3 -> Return On Net Worth(%)
G13: Match
G14: =MATCH($C$4,INDIRECT("'"&E15&"'!A:A"),0)-2 -> 367 | H14: =INDEX(INDIRECT("'"&$E15&"'!B:B"),$G14) -> Mar '18 | I14: =INDEX(INDIRECT("'"&$E15&"'!C:C"),$G14) -> Mar '17 | J14: =INDEX(INDIRECT("'"&$E15&"'!D:D"),$G14) -> Mar '16 | K14: =INDEX(INDIRECT("'"&$E15&"'!E:E"),$G14) -> Mar '15 | L14: =INDEX(INDIRECT("'"&$E15&"'!F:F"),$G14) -> Mar '14
C15: =C8 -> tatamotors | D15: Ratios | E15: =C15&D15 -> tatamotors Ratios | G15: =MATCH($G$12,INDIRECT("'"&E15&"'!A:A"),0) -> 385 | H15: =INDEX(INDIRECT("'"&$E15&"'!B:B"),$G15) -> -5.13 | I15: =INDEX(INDIRECT("'"&$E15&"'!C:C"),$G15) -> -11.48 | J15: =INDEX(INDIRECT("'"&$E15&"'!D:D"),$G15) -> -0.26 | K15: =INDEX(INDIRECT("'"&$E15&"'!E:E"),$G15) -> -31.93 | L15: =INDEX(INDIRECT("'"&$E15&"'!F:F"),$G15) -> 1.74
C16: =C9 -> htmedia | D16: Ratios | E16: =C16&D16 -> htmedia Ratios | G16: =MATCH($G$12,INDIRECT("'"&E16&"'!A:A"),0) -> 385 | H16: =INDEX(INDIRECT("'"&$E16&"'!B:B"),$G16) -> 11.25 | I16: =INDEX(INDIRECT("'"&$E16&"'!C:C"),$G16) -> 3.62 | J16: =INDEX(INDIRECT("'"&$E16&"'!D:D"),$G16) -> 6.78 | K16: =INDEX(INDIRECT("'"&$E16&"'!E:E"),$G16) -> 7.56 | L16: =INDEX(INDIRECT("'"&$E16&"'!F:F"),$G16) -> 11.04
C17: relianceindustries | D17: Ratios | E17: relianceindustries Ratios | G17: =MATCH($G$12,INDIRECT("'"&E17&"'!A:A"),0) -> 385 | H17: =INDEX(INDIRECT("'"&$E17&"'!B:B"),$G17) -> 10.68 | I17: =INDEX(INDIRECT("'"&$E17&"'!C:C"),$G17) -> 10.89 | J17: 11.41 | K17: 10.51 | L17: 11.15

Sheet Delete Break

Sheet tatamotors BS
A1: English
A2: Hindi
A3: Gujarati
A5: App
A7: Subscription
A8: Specials
A20: Quotes
A21: NAVs
A22: Commodities
A23: Futures & Options
A24: News
A25: Forum
A26: Notices
A27: Videos
A28: Glossary
A29: All
A31: Stocks
A32: Feedback
A33: Log In
A35: My Profile (Unverified)
A36: My Portfolio
A37: My Watchlist
A38: My Messages
A39: My Alerts
A41: Sign Up
A42: Logout
A50: Get App
A51: Log In
A52: Sign Up
A53: My Portfolio
A54: My Watchlist
A55: My Messages
A56: Sign out
A58: Quotes
A59: NAVs
A60: Commodities
A61: Futures & Options
A62: News
A63: Forum
A64: Notices
A65: Videos
A66: Glossary
A67: All
A68: Auriferous Aqua Farma , 519363
A69: View All
A70: Select Language
A71: English
A72: à¤¹à¤¿à¤‚à¤¦à¥€
A73: à¤—à¥à¤œà¤°à¤¾à¤¤à¥€
A74: Home
A75: Lok Sabha Election 2019
A77: Stock Premier League
A79: News
A80: Markets
A81: Portfolio
A82: Watchlist
A83: Forum
A84: Indian Indices
A85: Global Indices
A86: MoneySavers
A87: Live TV & Shows
A88: Video
A90: Commodities
A91: Currencies
A92: Mutual Funds
A93: Personal Finance
A94: Podcast
A96: Cryptocurrency
A97: Subscription
A98: Specials
A99: Invest Now
A100: Master Your Money
A101: SME Special
A102: Real Assets
A103: Travel Cafe
A104: Tech Control
A105: Home
A107: Companies
A108: Economy
A109: Property
A110: Politics
A111: Auto
A112: Cricket
A113: World
A114: Announcements
A115: News
A117: Business
A118: Markets
A119: Stocks
A120: Economy
A121: Research
A122: Mutual Funds
A123: Personal Finance
A124: Property
A125: Auto
A126: IPO
A127: Politics
A128: India
A129: World
A130: BFSI Tech
A132: Consumer Tech
A133: Startups
A134: Opinion
A136: Lok Sabha Election 2019
A138: Home
A139: Opinion
A140: Videos
A141: Photos
A142: Podcasts
A143: Modinomics Review
A144: Millennial News
A145: Election Dates
A146: Lok Sabha News
A147: Assembly Election 2019
A148: Markets
A150: Home
A151: Pre-Market
A152: Advice
A153: Technicals
A154: F&O
A155: Earnings
A156: IPO
A157: All Stats
A158: Indian Indices
A160: Global Markets
A161: Currencies
A162: Crypto
A163: Bonds
A164: Broker Research
A165: Tools
A166: Terminal
A167: Mutual Funds
A169: Home
A170: Performance Tracker
A171: Top Ranked Funds
A172: ETFs
A173: NFO
A174: Learn
A175: Evaluate
A176: Track
A177: Tools
A178: SEBI Re-categorisation
A179: Tax Saving FY19
A180: Commodities
A181: Insurance
A183: Video
A185: Managing Money with Moneycontrol
A186: The Udayan Show
A187: Ideas for Profit
A188: Markets@moneycontrol
A189: Commodities@Moneycontrol
A190: Podcast
A192: Digging Deeper with Moneycontrol
A193: Stock Picks of the Day
A194: Editor's Story of the Day
A195: A Morning Walk Down Dalal Street
A196: An Evening Walk Down Dalal Street
A197: Personal Finance
A199: Home
A200: Investing
A201: Insurance
A202: Banking
A203: Financial Planning
A204: Property
A205: Tools
A206: Video
A207: Ask Expert
A208: Explainer
A209: Portfolio
A210: Forum
A211: Be a Pro
A214: Home
A215: Stock Reports
A216: Ambareesh Balega
A217: CK Narayan
A218: Mitessh Thakkar
A219: Sudarshan Sukhani
A220: T Gnanasekar
A221: Mecklai Financial
A222: Power Your Trade
A223: Investment Watch
A224: Live TV
A225: Hindi
A226: Gujarati
A227: All Stocks
A228: App
A229: Subscriptions
A230: Specials
A231: Feedback
A232: Close Ad
A233: Verify your Moneycontrol account. Please verify your Email ID and Mobile Number today. Verify Now
A237: A Quick View
A238: Stocks in news
A239: Stocks you last visited
A240: Watchlist
A241: Portfolio
A242: Customize Stack 1 Customize Stack 2 Customize Stack 3 Customize Stack 4
A244: Customize
A245: Customize Stacks
A246: Customize Ticker
... 189 more rows

Sheet tatamotors PL
A1: English
A2: Hindi
A3: Gujarati
A5: App
A7: Subscription
A8: Specials
A20: Quotes
A21: NAVs
A22: Commodities
A23: Futures & Options
A24: News
A25: Forum
A26: Notices
A27: Videos
A28: Glossary
A29: All
A31: Stocks
A32: Feedback
A33: Log In
A35: My Profile (Unverified)
A36: My Portfolio
A37: My Watchlist
A38: My Messages
A39: My Alerts
A41: Sign Up
A42: Logout
A50: Get App
A51: Log In
A52: Sign Up
A53: My Portfolio
A54: My Watchlist
A55: My Messages
A56: Sign out
A58: Quotes
A59: NAVs
A60: Commodities
A61: Futures & Options
A62: News
A63: Forum
A64: Notices
A65: Videos
A66: Glossary
A67: All
A68: Auriferous Aqua Farma , 519363
A69: View All
A70: Select Language
A71: English
A72: à¤¹à¤¿à¤‚à¤¦à¥€
A73: à¤—à¥à¤œà¤°à¤¾à¤¤à¥€
A74: Home
A75: Lok Sabha Election 2019
A77: Stock Premier League
A79: News
A80: Markets
A81: Portfolio
A82: Watchlist
A83: Forum
A84: Indian Indices
A85: Global Indices
A86: MoneySavers
A87: Live TV & Shows
A88: Video
A90: Commodities
A91: Currencies
A92: Mutual Funds
A93: Personal Finance
A94: Podcast
A96: Cryptocurrency
A97: Subscription
A98: Specials
A99: Invest Now
A100: Master Your Money
A101: SME Special
A102: Real Assets
A103: Travel Cafe
A104: Tech Control
A105: Home
A107: Companies
A108: Economy
A109: Property
A110: Politics
A111: Auto
A112: Cricket
A113: World
A114: Announcements
A115: News
A117: Business
A118: Markets
A119: Stocks
A120: Economy
A121: Research
A122: Mutual Funds
A123: Personal Finance
A124: Property
A125: Auto
A126: IPO
A127: Politics
A128: India
A129: World
A130: BFSI Tech
A132: Consumer Tech
A133: Startups
A134: Opinion
A136: Lok Sabha Election 2019
A138: Home
A139: Opinion
A140: Videos
A141: Photos
A142: Podcasts
A143: Modinomics Review
A144: Millennial News
A145: Election Dates
A146: Lok Sabha News
A147: Assembly Election 2019
A148: Markets
A150: Home
A151: Pre-Market
A152: Advice
A153: Technicals
A154: F&O
A155: Earnings
A156: IPO
A157: All Stats
A158: Indian Indices
A160: Global Markets
A161: Currencies
A162: Crypto
A163: Bonds
A164: Broker Research
A165: Tools
A166: Terminal
A167: Mutual Funds
A169: Home
A170: Performance Tracker
A171: Top Ranked Funds
A172: ETFs
A173: NFO
A174: Learn
A175: Evaluate
A176: Track
A177: Tools
A178: SEBI Re-categorisation
A179: Tax Saving FY19
A180: Commodities
A181: Insurance
A183: Video
A185: Managing Money with Moneycontrol
A186: The Udayan Show
A187: Ideas for Profit
A188: Markets@moneycontrol
A189: Commodities@Moneycontrol
A190: Podcast
A192: Digging Deeper with Moneycontrol
A193: Stock Picks of the Day
A194: Editor's Story of the Day
A195: A Morning Walk Down Dalal Street
A196: An Evening Walk Down Dalal Street
A197: Personal Finance
A199: Home
A200: Investing
A201: Insurance
A202: Banking
A203: Financial Planning
A204: Property
A205: Tools
A206: Video
A207: Ask Expert
A208: Explainer
A209: Portfolio
A210: Forum
A211: Be a Pro
A214: Home
A215: Stock Reports
A216: Ambareesh Balega
A217: CK Narayan
A218: Mitessh Thakkar
A219: Sudarshan Sukhani
A220: T Gnanasekar
A221: Mecklai Financial
A222: Power Your Trade
A223: Investment Watch
A224: Live TV
A225: Hindi
A226: Gujarati
A227: All Stocks
A228: App
A229: Subscriptions
A230: Specials
A231: Feedback
A232: Close Ad
A233: Verify your Moneycontrol account. Please verify your Email ID and Mobile Number today. Verify Now
A237: A Quick View
A238: Stocks in news
A239: Stocks you last visited
A240: Watchlist
A241: Portfolio
A242: Customize Stack 1 Customize Stack 2 Customize Stack 3 Customize Stack 4
A244: Customize
A245: Customize Stacks
A246: Customize Ticker
... 205 more rows

Sheet tatamotors Ratios
A1: English
A2: Hindi
A3: Gujarati
A5: App
A7: Subscription
A8: Specials
A20: Quotes
A21: NAVs
A22: Commodities
A23: Futures & Options
A24: News
A25: Forum
A26: Notices
A27: Videos
A28: Glossary
A29: All
A31: Stocks
A32: Feedback
A33: Log In
A35: My Profile (Unverified)
A36: My Portfolio
A37: My Watchlist
A38: My Messages
A39: My Alerts
A41: Sign Up
A42: Logout
A50: Get App
A51: Log In
A52: Sign Up
A53: My Portfolio
A54: My Watchlist
A55: My Messages
A56: Sign out
A58: Quotes
A59: NAVs
A60: Commodities
A61: Futures & Options
A62: News
A63: Forum
A64: Notices
A65: Videos
A66: Glossary
A67: All
A68: Auriferous Aqua Farma , 519363
A69: View All
A70: Select Language
A71: English
A72: à¤¹à¤¿à¤‚à¤¦à¥€
A73: à¤—à¥à¤œà¤°à¤¾à¤¤à¥€
A74: Home
A75: Lok Sabha Election 2019
A77: Stock Premier League
A79: News
A80: Markets
A81: Portfolio
A82: Watchlist
A83: Forum
A84: Indian Indices
A85: Global Indices
A86: MoneySavers
A87: Live TV & Shows
A88: Video
A90: Commodities
A91: Currencies
A92: Mutual Funds
A93: Personal Finance
A94: Podcast
A96: Cryptocurrency
A97: Subscription
A98: Specials
A99: Invest Now
A100: Master Your Money
A101: SME Special
A102: Real Assets
A103: Travel Cafe
A104: Tech Control
A105: Home
A107: Companies
A108: Economy
A109: Property
A110: Politics
A111: Auto
A112: Cricket
A113: World
A114: Announcements
A115: News
A117: Business
A118: Markets
A119: Stocks
A120: Economy
A121: Research
A122: Mutual Funds
A123: Personal Finance
A124: Property
A125: Auto
A126: IPO
A127: Politics
A128: India
A129: World
A130: BFSI Tech
A132: Consumer Tech
A133: Startups
A134: Opinion
A136: Lok Sabha Election 2019
A138: Home
A139: Opinion
A140: Videos
A141: Photos
A142: Podcasts
A143: Modinomics Review
A144: Millennial News
A145: Election Dates
A146: Lok Sabha News
A147: Assembly Election 2019
A148: Markets
A150: Home
A151: Pre-Market
A152: Advice
A153: Technicals
A154: F&O
A155: Earnings
A156: IPO
A157: All Stats
A158: Indian Indices
A160: Global Markets
A161: Currencies
A162: Crypto
A163: Bonds
A164: Broker Research
A165: Tools
A166: Terminal
A167: Mutual Funds
A169: Home
A170: Performance Tracker
A171: Top Ranked Funds
A172: ETFs
A173: NFO
A174: Learn
A175: Evaluate
A176: Track
A177: Tools
A178: SEBI Re-categorisation
A179: Tax Saving FY19
A180: Commodities
A181: Insurance
A183: Video
A185: Managing Money with Moneycontrol
A186: The Udayan Show
A187: Ideas for Profit
A188: Markets@moneycontrol
A189: Commodities@Moneycontrol
A190: Podcast
A192: Digging Deeper with Moneycontrol
A193: Stock Picks of the Day
A194: Editor's Story of the Day
A195: A Morning Walk Down Dalal Street
A196: An Evening Walk Down Dalal Street
A197: Personal Finance
A199: Home
A200: Investing
A201: Insurance
A202: Banking
A203: Financial Planning
A204: Property
A205: Tools
A206: Video
A207: Ask Expert
A208: Explainer
A209: Portfolio
A210: Forum
A211: Be a Pro
A214: Home
A215: Stock Reports
A216: Ambareesh Balega
A217: CK Narayan
A218: Mitessh Thakkar
A219: Sudarshan Sukhani
A220: T Gnanasekar
A221: Mecklai Financial
A222: Power Your Trade
A223: Investment Watch
A224: Live TV
A225: Hindi
A226: Gujarati
A227: All Stocks
A228: App
A229: Subscriptions
A230: Specials
A231: Feedback
A232: Close Ad
A233: Verify your Moneycontrol account. Please verify your Email ID and Mobile Number today. Verify Now
A237: A Quick View
A238: Stocks in news
A239: Stocks you last visited
A240: Watchlist
A241: Portfolio
A242: Customize Stack 1 Customize Stack 2 Customize Stack 3 Customize Stack 4
A244: Customize
A245: Customize Stacks
A246: Customize Ticker
... 209 more rows

Sheet tatamotors CF
A1: English
A2: Hindi
A3: Gujarati
A5: App
A7: Subscription
A8: Specials
A20: Quotes
A21: NAVs
A22: Commodities
A23: Futures & Options
A24: News
A25: Forum
A26: Notices
A27: Videos
A28: Glossary
A29: All
A31: Stocks
A32: Feedback
A33: Log In
A35: My Profile (Unverified)
A36: My Portfolio
A37: My Watchlist
A38: My Messages
A39: My Alerts
A41: Sign Up
A42: Logout
A50: Get App
A51: Log In
A52: Sign Up
A53: My Portfolio
A54: My Watchlist
A55: My Messages
A56: Sign out
A58: Quotes
A59: NAVs
A60: Commodities
A61: Futures & Options
A62: News
A63: Forum
A64: Notices
A65: Videos
A66: Glossary
A67: All
A68: Auriferous Aqua Farma , 519363
A69: View All
A70: Select Language
A71: English
A72: à¤¹à¤¿à¤‚à¤¦à¥€
A73: à¤—à¥à¤œà¤°à¤¾à¤¤à¥€
A74: Home
A75: Lok Sabha Election 2019
A77: Stock Premier League
A79: News
A80: Markets
A81: Portfolio
A82: Watchlist
A83: Forum
A84: Indian Indices
A85: Global Indices
A86: MoneySavers
A87: Live TV & Shows
A88: Video
A90: Commodities
A91: Currencies
A92: Mutual Funds
A93: Personal Finance
A94: Podcast
A96: Cryptocurrency
A97: Subscription
A98: Specials
A99: Invest Now
A100: Master Your Money
A101: SME Special
A102: Real Assets
A103: Travel Cafe
A104: Tech Control
A105: Home
A107: Companies
A108: Economy
A109: Property
A110: Politics
A111: Auto
A112: Cricket
A113: World
A114: Announcements
A115: News
A117: Business
A118: Markets
A119: Stocks
A120: Economy
A121: Research
A122: Mutual Funds
A123: Personal Finance
A124: Property
A125: Auto
A126: IPO
A127: Politics
A128: India
A129: World
A130: BFSI Tech
A132: Consumer Tech
A133: Startups
A134: Opinion
A136: Lok Sabha Election 2019
A138: Home
A139: Opinion
A140: Videos
A141: Photos
A142: Podcasts
A143: Modinomics Review
A144: Millennial News
A145: Election Dates
A146: Lok Sabha News
A147: Assembly Election 2019
A148: Markets
A150: Home
A151: Pre-Market
A152: Advice
A153: Technicals
A154: F&O
A155: Earnings
A156: IPO
A157: All Stats
A158: Indian Indices
A160: Global Markets
A161: Currencies
A162: Crypto
A163: Bonds
A164: Broker Research
A165: Tools
A166: Terminal
A167: Mutual Funds
A169: Home
A170: Performance Tracker
A171: Top Ranked Funds
A172: ETFs
A173: NFO
A174: Learn
A175: Evaluate
A176: Track
A177: Tools
A178: SEBI Re-categorisation
A179: Tax Saving FY19
A180: Commodities
A181: Insurance
A183: Video
A185: Managing Money with Moneycontrol
A186: The Udayan Show
A187: Ideas for Profit
A188: Markets@moneycontrol
A189: Commodities@Moneycontrol
A190: Podcast
A192: Digging Deeper with Moneycontrol
A193: Stock Picks of the Day
A194: Editor's Story of the Day
A195: A Morning Walk Down Dalal Street
A196: An Evening Walk Down Dalal Street
A197: Personal Finance
A199: Home
A200: Investing
A201: Insurance
A202: Banking
A203: Financial Planning
A204: Property
A205: Tools
A206: Video
A207: Ask Expert
A208: Explainer
A209: Portfolio
A210: Forum
A211: Be a Pro
A214: Home
A215: Stock Reports
A216: Ambareesh Balega
A217: CK Narayan
A218: Mitessh Thakkar
A219: Sudarshan Sukhani
A220: T Gnanasekar
A221: Mecklai Financial
A222: Power Your Trade
A223: Investment Watch
A224: Live TV
A225: Hindi
A226: Gujarati
A227: All Stocks
A228: App
A229: Subscriptions
A230: Specials
A231: Feedback
A232: Close Ad
A233: Verify your Moneycontrol account. Please verify your Email ID and Mobile Number today. Verify Now
A237: A Quick View
A238: Stocks in news
A239: Stocks you last visited
A240: Watchlist
A241: Portfolio
A242: Customize Stack 1 Customize Stack 2 Customize Stack 3 Customize Stack 4
A244: Customize
A245: Customize Stacks
A246: Customize Ticker
... 166 more rows

Sheet htmedia BS
A1: English
A2: Hindi
A3: Gujarati
A5: App
A7: Subscription
A8: Specials
A20: Quotes
A21: NAVs
A22: Commodities
A23: Futures & Options
A24: News
A25: Forum
A26: Notices
A27: Videos
A28: Glossary
A29: All
A31: Stocks
A32: Feedback
A33: Log In
A35: My Profile (Unverified)
A36: My Portfolio
A37: My Watchlist
A38: My Messages
A39: My Alerts
A41: Sign Up
A42: Logout
A50: Get App
A51: Log In
A52: Sign Up
A53: My Portfolio
A54: My Watchlist
A55: My Messages
A56: Sign out
A58: Quotes
A59: NAVs
A60: Commodities
A61: Futures & Options
A62: News
A63: Forum
A64: Notices
A65: Videos
A66: Glossary
A67: All
A68: Auriferous Aqua Farma , 519363
A69: View All
A70: Select Language
A71: English
A72: à¤¹à¤¿à¤‚à¤¦à¥€
A73: à¤—à¥à¤œà¤°à¤¾à¤¤à¥€
A74: Home
A75: Lok Sabha Election 2019
A77: Stock Premier League
A79: News
A80: Markets
A81: Portfolio
A82: Watchlist
A83: Forum
A84: Indian Indices
A85: Global Indices
A86: MoneySavers
A87: Live TV & Shows
A88: Video
A90: Commodities
A91: Currencies
A92: Mutual Funds
A93: Personal Finance
A94: Podcast
A96: Cryptocurrency
A97: Subscription
A98: Specials
A99: Invest Now
A100: Master Your Money
A101: SME Special
A102: Real Assets
A103: Travel Cafe
A104: Tech Control
A105: Home
A107: Companies
A108: Economy
A109: Property
A110: Politics
A111: Auto
A112: Cricket
A113: World
A114: Announcements
A115: News
A117: Business
A118: Markets
A119: Stocks
A120: Economy
A121: Research
A122: Mutual Funds
A123: Personal Finance
A124: Property
A125: Auto
A126: IPO
A127: Politics
A128: India
A129: World
A130: BFSI Tech
A132: Consumer Tech
A133: Startups
A134: Opinion
A136: Lok Sabha Election 2019
A138: Home
A139: Opinion
A140: Videos
A141: Photos
A142: Podcasts
A143: Modinomics Review
A144: Millennial News
A145: Election Dates
A146: Lok Sabha News
A147: Assembly Election 2019
A148: Markets
A150: Home
A151: Pre-Market
A152: Advice
A153: Technicals
A154: F&O
A155: Earnings
A156: IPO
A157: All Stats
A158: Indian Indices
A160: Global Markets
A161: Currencies
A162: Crypto
A163: Bonds
A164: Broker Research
A165: Tools
A166: Terminal
A167: Mutual Funds
A169: Home
A170: Performance Tracker
A171: Top Ranked Funds
A172: ETFs
A173: NFO
A174: Learn
A175: Evaluate
A176: Track
A177: Tools
A178: SEBI Re-categorisation
A179: Tax Saving FY19
A180: Commodities
A181: Insurance
A183: Video
A185: Managing Money with Moneycontrol
A186: The Udayan Show
A187: Ideas for Profit
A188: Markets@moneycontrol
A189: Commodities@Moneycontrol
A190: Podcast
A192: Digging Deeper with Moneycontrol
A193: Stock Picks of the Day
A194: Editor's Story of the Day
A195: A Morning Walk Down Dalal Street
A196: An Evening Walk Down Dalal Street
A197: Personal Finance
A199: Home
A200: Investing
A201: Insurance
A202: Banking
A203: Financial Planning
A204: Property
A205: Tools
A206: Video
A207: Ask Expert
A208: Explainer
A209: Portfolio
A210: Forum
A211: Be a Pro
A214: Home
A215: Stock Reports
A216: Ambareesh Balega
A217: CK Narayan
A218: Mitessh Thakkar
A219: Sudarshan Sukhani
A220: T Gnanasekar
A221: Mecklai Financial
A222: Power Your Trade
A223: Investment Watch
A224: Live TV
A225: Hindi
A226: Gujarati
A227: All Stocks
A228: App
A229: Subscriptions
A230: Specials
A231: Feedback
A232: Close Ad
A233: Verify your Moneycontrol account. Please verify your Email ID and Mobile Number today. Verify Now
A237: A Quick View
A238: Stocks in news
A239: Stocks you last visited
A240: Watchlist
A241: Portfolio
A242: Customize Stack 1 Customize Stack 2 Customize Stack 3 Customize Stack 4
A244: Customize
A245: Customize Stacks
A246: Customize Ticker
... 182 more rows

Sheet htmedia PL
A1: English
A2: Hindi
A3: Gujarati
A5: App
A7: Subscription
A8: Specials
A20: Quotes
A21: NAVs
A22: Commodities
A23: Futures & Options
A24: News
A25: Forum
A26: Notices
A27: Videos
A28: Glossary
A29: All
A31: Stocks
A32: Feedback
A33: Log In
A35: My Profile (Unverified)
A36: My Portfolio
A37: My Watchlist
A38: My Messages
A39: My Alerts
A41: Sign Up
A42: Logout
A50: Get App
A51: Log In
A52: Sign Up
A53: My Portfolio
A54: My Watchlist
A55: My Messages
A56: Sign out
A58: Quotes
A59: NAVs
A60: Commodities
A61: Futures & Options
A62: News
A63: Forum
A64: Notices
A65: Videos
A66: Glossary
A67: All
A68: Auriferous Aqua Farma , 519363
A69: View All
A70: Select Language
A71: English
A72: à¤¹à¤¿à¤‚à¤¦à¥€
A73: à¤—à¥à¤œà¤°à¤¾à¤¤à¥€
A74: Home
A75: Lok Sabha Election 2019
A77: Stock Premier League
A79: News
A80: Markets
A81: Portfolio
A82: Watchlist
A83: Forum
A84: Indian Indices
A85: Global Indices
A86: MoneySavers
A87: Live TV & Shows
A88: Video
A90: Commodities
A91: Currencies
A92: Mutual Funds
A93: Personal Finance
A94: Podcast
A96: Cryptocurrency
A97: Subscription
A98: Specials
A99: Invest Now
A100: Master Your Money
A101: SME Special
A102: Real Assets
A103: Travel Cafe
A104: Tech Control
A105: Home
A107: Companies
A108: Economy
A109: Property
A110: Politics
A111: Auto
A112: Cricket
A113: World
A114: Announcements
A115: News
A117: Business
A118: Markets
A119: Stocks
A120: Economy
A121: Research
A122: Mutual Funds
A123: Personal Finance
A124: Property
A125: Auto
A126: IPO
A127: Politics
A128: India
A129: World
A130: BFSI Tech
A132: Consumer Tech
A133: Startups
A134: Opinion
A136: Lok Sabha Election 2019
A138: Home
A139: Opinion
A140: Videos
A141: Photos
A142: Podcasts
A143: Modinomics Review
A144: Millennial News
A145: Election Dates
A146: Lok Sabha News
A147: Assembly Election 2019
A148: Markets
A150: Home
A151: Pre-Market
A152: Advice
A153: Technicals
A154: F&O
A155: Earnings
A156: IPO
A157: All Stats
A158: Indian Indices
A160: Global Markets
A161: Currencies
A162: Crypto
A163: Bonds
A164: Broker Research
A165: Tools
A166: Terminal
A167: Mutual Funds
A169: Home
A170: Performance Tracker
A171: Top Ranked Funds
A172: ETFs
A173: NFO
A174: Learn
A175: Evaluate
A176: Track
A177: Tools
A178: SEBI Re-categorisation
A179: Tax Saving FY19
A180: Commodities
A181: Insurance
A183: Video
A185: Managing Money with Moneycontrol
A186: The Udayan Show
A187: Ideas for Profit
A188: Markets@moneycontrol
A189: Commodities@Moneycontrol
A190: Podcast
A192: Digging Deeper with Moneycontrol
A193: Stock Picks of the Day
A194: Editor's Story of the Day
A195: A Morning Walk Down Dalal Street
A196: An Evening Walk Down Dalal Street
A197: Personal Finance
A199: Home
A200: Investing
A201: Insurance
A202: Banking
A203: Financial Planning
A204: Property
A205: Tools
A206: Video
A207: Ask Expert
A208: Explainer
A209: Portfolio
A210: Forum
A211: Be a Pro
A214: Home
A215: Stock Reports
A216: Ambareesh Balega
A217: CK Narayan
A218: Mitessh Thakkar
A219: Sudarshan Sukhani
A220: T Gnanasekar
A221: Mecklai Financial
A222: Power Your Trade
A223: Investment Watch
A224: Live TV
A225: Hindi
A226: Gujarati
A227: All Stocks
A228: App
A229: Subscriptions
A230: Specials
A231: Feedback
A232: Close Ad
A233: Verify your Moneycontrol account. Please verify your Email ID and Mobile Number today. Verify Now
A237: A Quick View
A238: Stocks in news
A239: Stocks you last visited
A240: Watchlist
A241: Portfolio
A242: Customize Stack 1 Customize Stack 2 Customize Stack 3 Customize Stack 4
A244: Customize
A245: Customize Stacks
A246: Customize Ticker
... 199 more rows

Sheet htmedia Ratios
A1: English
A2: Hindi
A3: Gujarati
A5: App
A7: Subscription
A8: Specials
A20: Quotes
A21: NAVs
A22: Commodities
A23: Futures & Options
A24: News
A25: Forum
A26: Notices
A27: Videos
A28: Glossary
A29: All
A31: Stocks
A32: Feedback
A33: Log In
A35: My Profile (Unverified)
A36: My Portfolio
A37: My Watchlist
A38: My Messages
A39: My Alerts
A41: Sign Up
A42: Logout
A50: Get App
A51: Log In
A52: Sign Up
A53: My Portfolio
A54: My Watchlist
A55: My Messages
A56: Sign out
A58: Quotes
A59: NAVs
A60: Commodities
A61: Futures & Options
A62: News
A63: Forum
A64: Notices
A65: Videos
A66: Glossary
A67: All
A68: Auriferous Aqua Farma , 519363
A69: View All
A70: Select Language
A71: English
A72: à¤¹à¤¿à¤‚à¤¦à¥€
A73: à¤—à¥à¤œà¤°à¤¾à¤¤à¥€
A74: Home
A75: Lok Sabha Election 2019
A77: Stock Premier League
A79: News
A80: Markets
A81: Portfolio
A82: Watchlist
A83: Forum
A84: Indian Indices
A85: Global Indices
A86: MoneySavers
A87: Live TV & Shows
A88: Video
A90: Commodities
A91: Currencies
A92: Mutual Funds
A93: Personal Finance
A94: Podcast
A96: Cryptocurrency
A97: Subscription
A98: Specials
A99: Invest Now
A100: Master Your Money
A101: SME Special
A102: Real Assets
A103: Travel Cafe
A104: Tech Control
A105: Home
A107: Companies
A108: Economy
A109: Property
A110: Politics
A111: Auto
A112: Cricket
A113: World
A114: Announcements
A115: News
A117: Business
A118: Markets
A119: Stocks
A120: Economy
A121: Research
A122: Mutual Funds
A123: Personal Finance
A124: Property
A125: Auto
A126: IPO
A127: Politics
A128: India
A129: World
A130: BFSI Tech
A132: Consumer Tech
A133: Startups
A134: Opinion
A136: Lok Sabha Election 2019
A138: Home
A139: Opinion
A140: Videos
A141: Photos
A142: Podcasts
A143: Modinomics Review
A144: Millennial News
A145: Election Dates
A146: Lok Sabha News
A147: Assembly Election 2019
A148: Markets
A150: Home
A151: Pre-Market
A152: Advice
A153: Technicals
A154: F&O
A155: Earnings
A156: IPO
A157: All Stats
A158: Indian Indices
A160: Global Markets
A161: Currencies
A162: Crypto
A163: Bonds
A164: Broker Research
A165: Tools
A166: Terminal
A167: Mutual Funds
A169: Home
A170: Performance Tracker
A171: Top Ranked Funds
A172: ETFs
A173: NFO
A174: Learn
A175: Evaluate
A176: Track
A177: Tools
A178: SEBI Re-categorisation
A179: Tax Saving FY19
A180: Commodities
A181: Insurance
A183: Video
A185: Managing Money with Moneycontrol
A186: The Udayan Show
A187: Ideas for Profit
A188: Markets@moneycontrol
A189: Commodities@Moneycontrol
A190: Podcast
A192: Digging Deeper with Moneycontrol
A193: Stock Picks of the Day
A194: Editor's Story of the Day
A195: A Morning Walk Down Dalal Street
A196: An Evening Walk Down Dalal Street
A197: Personal Finance
A199: Home
A200: Investing
A201: Insurance
A202: Banking
A203: Financial Planning
A204: Property
A205: Tools
A206: Video
A207: Ask Expert
A208: Explainer
A209: Portfolio
A210: Forum
A211: Be a Pro
A214: Home
A215: Stock Reports
A216: Ambareesh Balega
A217: CK Narayan
A218: Mitessh Thakkar
A219: Sudarshan Sukhani
A220: T Gnanasekar
A221: Mecklai Financial
A222: Power Your Trade
A223: Investment Watch
A224: Live TV
A225: Hindi
A226: Gujarati
A227: All Stocks
A228: App
A229: Subscriptions
A230: Specials
A231: Feedback
A232: Close Ad
A233: Verify your Moneycontrol account. Please verify your Email ID and Mobile Number today. Verify Now
A237: A Quick View
A238: Stocks in news
A239: Stocks you last visited
A240: Watchlist
A241: Portfolio
A242: Customize Stack 1 Customize Stack 2 Customize Stack 3 Customize Stack 4
A244: Customize
A245: Customize Stacks
A246: Customize Ticker
... 203 more rows

Sheet htmedia CF
A1: English
A2: Hindi
A3: Gujarati
A5: App
A7: Subscription
A8: Specials
A20: Quotes
A21: NAVs
A22: Commodities
A23: Futures & Options
A24: News
A25: Forum
A26: Notices
A27: Videos
A28: Glossary
A29: All
A31: Stocks
A32: Feedback
A33: Log In
A35: My Profile (Unverified)
A36: My Portfolio
A37: My Watchlist
A38: My Messages
A39: My Alerts
A41: Sign Up
A42: Logout
A50: Get App
A51: Log In
A52: Sign Up
A53: My Portfolio
A54: My Watchlist
A55: My Messages
A56: Sign out
A58: Quotes
A59: NAVs
A60: Commodities
A61: Futures & Options
A62: News
A63: Forum
A64: Notices
A65: Videos
A66: Glossary
A67: All
A68: Auriferous Aqua Farma , 519363
A69: View All
A70: Select Language
A71: English
A72: à¤¹à¤¿à¤‚à¤¦à¥€
A73: à¤—à¥à¤œà¤°à¤¾à¤¤à¥€
A74: Home
A75: Lok Sabha Election 2019
A77: Stock Premier League
A79: News
A80: Markets
A81: Portfolio
A82: Watchlist
A83: Forum
A84: Indian Indices
A85: Global Indices
A86: MoneySavers
A87: Live TV & Shows
A88: Video
A90: Commodities
A91: Currencies
A92: Mutual Funds
A93: Personal Finance
A94: Podcast
A96: Cryptocurrency
A97: Subscription
A98: Specials
A99: Invest Now
A100: Master Your Money
A101: SME Special
A102: Real Assets
A103: Travel Cafe
A104: Tech Control
A105: Home
A107: Companies
A108: Economy
A109: Property
A110: Politics
A111: Auto
A112: Cricket
A113: World
A114: Announcements
A115: News
A117: Business
A118: Markets
A119: Stocks
A120: Economy
A121: Research
A122: Mutual Funds
A123: Personal Finance
A124: Property
A125: Auto
A126: IPO
A127: Politics
A128: India
A129: World
A130: BFSI Tech
A132: Consumer Tech
A133: Startups
A134: Opinion
A136: Lok Sabha Election 2019
A138: Home
A139: Opinion
A140: Videos
A141: Photos
A142: Podcasts
A143: Modinomics Review
A144: Millennial News
A145: Election Dates
A146: Lok Sabha News
A147: Assembly Election 2019
A148: Markets
A150: Home
A151: Pre-Market
A152: Advice
A153: Technicals
A154: F&O
A155: Earnings
A156: IPO
A157: All Stats
A158: Indian Indices
A160: Global Markets
A161: Currencies
A162: Crypto
A163: Bonds
A164: Broker Research
A165: Tools
A166: Terminal
A167: Mutual Funds
A169: Home
A170: Performance Tracker
A171: Top Ranked Funds
A172: ETFs
A173: NFO
A174: Learn
A175: Evaluate
A176: Track
A177: Tools
A178: SEBI Re-categorisation
A179: Tax Saving FY19
A180: Commodities
A181: Insurance
A183: Video
A185: Managing Money with Moneycontrol
A186: The Udayan Show
A187: Ideas for Profit
A188: Markets@moneycontrol
A189: Commodities@Moneycontrol
A190: Podcast
A192: Digging Deeper with Moneycontrol
A193: Stock Picks of the Day
A194: Editor's Story of the Day
A195: A Morning Walk Down Dalal Street
A196: An Evening Walk Down Dalal Street
A197: Personal Finance
A199: Home
A200: Investing
A201: Insurance
A202: Banking
A203: Financial Planning
A204: Property
A205: Tools
A206: Video
A207: Ask Expert
A208: Explainer
A209: Portfolio
A210: Forum
A211: Be a Pro
A214: Home
A215: Stock Reports
A216: Ambareesh Balega
A217: CK Narayan
A218: Mitessh Thakkar
A219: Sudarshan Sukhani
A220: T Gnanasekar
A221: Mecklai Financial
A222: Power Your Trade
A223: Investment Watch
A224: Live TV
A225: Hindi
A226: Gujarati
A227: All Stocks
A228: App
A229: Subscriptions
A230: Specials
A231: Feedback
A232: Close Ad
A233: Verify your Moneycontrol account. Please verify your Email ID and Mobile Number today. Verify Now
A237: A Quick View
A238: Stocks in news
A239: Stocks you last visited
A240: Watchlist
A241: Portfolio
A242: Customize Stack 1 Customize Stack 2 Customize Stack 3 Customize Stack 4
A244: Customize
A245: Customize Stacks
A246: Customize Ticker
... 160 more rows

Sheet relianceindustries BS
A1: English
A2: Hindi
A3: Gujarati
A5: App
A7: Subscription
A8: Specials
A20: Quotes
A21: NAVs
A22: Commodities
A23: Futures & Options
A24: News
A25: Forum
A26: Notices
A27: Videos
A28: Glossary
A29: All
A31: Stocks
A32: Feedback
A33: Log In
A35: My Profile (Unverified)
A36: My Portfolio
A37: My Watchlist
A38: My Messages
A39: My Alerts
A41: Sign Up
A42: Logout
A50: Get App
A51: Log In
A52: Sign Up
A53: My Portfolio
A54: My Watchlist
A55: My Messages
A56: Sign out
A58: Quotes
A59: NAVs
A60: Commodities
A61: Futures & Options
A62: News
A63: Forum
A64: Notices
A65: Videos
A66: Glossary
A67: All
A68: Auriferous Aqua Farma , 519363
A69: View All
A70: Select Language
A71: English
A72: à¤¹à¤¿à¤‚à¤¦à¥€
A73: à¤—à¥à¤œà¤°à¤¾à¤¤à¥€
A74: Home
A75: Lok Sabha Election 2019
A77: Stock Premier League
A79: News
A80: Markets
A81: Portfolio
A82: Watchlist
A83: Forum
A84: Indian Indices
A85: Global Indices
A86: MoneySavers
A87: Live TV & Shows
A88: Video
A90: Commodities
A91: Currencies
A92: Mutual Funds
A93: Personal Finance
A94: Podcast
A96: Cryptocurrency
A97: Subscription
A98: Specials
A99: Invest Now
A100: Master Your Money
A101: SME Special
A102: Real Assets
A103: Travel Cafe
A104: Tech Control
A105: Home
A107: Companies
A108: Economy
A109: Property
A110: Politics
A111: Auto
A112: Cricket
A113: World
A114: Announcements
A115: News
A117: Business
A118: Markets
A119: Stocks
A120: Economy
A121: Research
A122: Mutual Funds
A123: Personal Finance
A124: Property
A125: Auto
A126: IPO
A127: Politics
A128: India
A129: World
A130: BFSI Tech
A132: Consumer Tech
A133: Startups
A134: Opinion
A136: Lok Sabha Election 2019
A138: Home
A139: Opinion
A140: Videos
A141: Photos
A142: Podcasts
A143: Modinomics Review
A144: Millennial News
A145: Election Dates
A146: Lok Sabha News
A147: Assembly Election 2019
A148: Markets
A150: Home
A151: Pre-Market
A152: Advice
A153: Technicals
A154: F&O
A155: Earnings
A156: IPO
A157: All Stats
A158: Indian Indices
A160: Global Markets
A161: Currencies
A162: Crypto
A163: Bonds
A164: Broker Research
A165: Tools
A166: Terminal
A167: Mutual Funds
A169: Home
A170: Performance Tracker
A171: Top Ranked Funds
A172: ETFs
A173: NFO
A174: Learn
A175: Evaluate
A176: Track
A177: Tools
A178: SEBI Re-categorisation
A179: Tax Saving FY19
A180: Commodities
A181: Insurance
A183: Video
A185: Managing Money with Moneycontrol
A186: The Udayan Show
A187: Ideas for Profit
A188: Markets@moneycontrol
A189: Commodities@Moneycontrol
A190: Podcast
A192: Digging Deeper with Moneycontrol
A193: Stock Picks of the Day
A194: Editor's Story of the Day
A195: A Morning Walk Down Dalal Street
A196: An Evening Walk Down Dalal Street
A197: Personal Finance
A199: Home
A200: Investing
A201: Insurance
A202: Banking
A203: Financial Planning
A204: Property
A205: Tools
A206: Video
A207: Ask Expert
A208: Explainer
A209: Portfolio
A210: Forum
A211: Be a Pro
A214: Home
A215: Stock Reports
A216: Ambareesh Balega
A217: CK Narayan
A218: Mitessh Thakkar
A219: Sudarshan Sukhani
A220: T Gnanasekar
A221: Mecklai Financial
A222: Power Your Trade
A223: Investment Watch
A224: Live TV
A225: Hindi
A226: Gujarati
A227: All Stocks
A228: App
A229: Subscriptions
A230: Specials
A231: Feedback
A232: Close Ad
A233: Verify your Moneycontrol account. Please verify your Email ID and Mobile Number today. Verify Now
A237: A Quick View
A238: Stocks in news
A239: Stocks you last visited
A240: Watchlist
A241: Portfolio
A242: Customize Stack 1 Customize Stack 2 Customize Stack 3 Customize Stack 4
A244: Customize
A245: Customize Stacks
A246: Customize Ticker
... 197 more rows

Sheet relianceindustries PL
A1: English
A2: Hindi
A3: Gujarati
A5: App
A7: Subscription
A8: Specials
A20: Quotes
A21: NAVs
A22: Commodities
A23: Futures & Options
A24: News
A25: Forum
A26: Notices
A27: Videos
A28: Glossary
A29: All
A31: Stocks
A32: Feedback
A33: Log In
A35: My Profile (Unverified)
A36: My Portfolio
A37: My Watchlist
A38: My Messages
A39: My Alerts
A41: Sign Up
A42: Logout
A50: Get App
A51: Log In
A52: Sign Up
A53: My Portfolio
A54: My Watchlist
A55: My Messages
A56: Sign out
A58: Quotes
A59: NAVs
A60: Commodities
A61: Futures & Options
A62: News
A63: Forum
A64: Notices
A65: Videos
A66: Glossary
A67: All
A68: Auriferous Aqua Farma , 519363
A69: View All
A70: Select Language
A71: English
A72: à¤¹à¤¿à¤‚à¤¦à¥€
A73: à¤—à¥à¤œà¤°à¤¾à¤¤à¥€
A74: Home
A75: Lok Sabha Election 2019
A77: Stock Premier League
A79: News
A80: Markets
A81: Portfolio
A82: Watchlist
A83: Forum
A84: Indian Indices
A85: Global Indices
A86: MoneySavers
A87: Live TV & Shows
A88: Video
A90: Commodities
A91: Currencies
A92: Mutual Funds
A93: Personal Finance
A94: Podcast
A96: Cryptocurrency
A97: Subscription
A98: Specials
A99: Invest Now
A100: Master Your Money
A101: SME Special
A102: Real Assets
A103: Travel Cafe
A104: Tech Control
A105: Home
A107: Companies
A108: Economy
A109: Property
A110: Politics
A111: Auto
A112: Cricket
A113: World
A114: Announcements
A115: News
A117: Business
A118: Markets
A119: Stocks
A120: Economy
A121: Research
A122: Mutual Funds
A123: Personal Finance
A124: Property
A125: Auto
A126: IPO
A127: Politics
A128: India
A129: World
A130: BFSI Tech
A132: Consumer Tech
A133: Startups
A134: Opinion
A136: Lok Sabha Election 2019
A138: Home
A139: Opinion
A140: Videos
A141: Photos
A142: Podcasts
A143: Modinomics Review
A144: Millennial News
A145: Election Dates
A146: Lok Sabha News
A147: Assembly Election 2019
A148: Markets
A150: Home
A151: Pre-Market
A152: Advice
A153: Technicals
A154: F&O
A155: Earnings
A156: IPO
A157: All Stats
A158: Indian Indices
A160: Global Markets
A161: Currencies
A162: Crypto
A163: Bonds
A164: Broker Research
A165: Tools
A166: Terminal
A167: Mutual Funds
A169: Home
A170: Performance Tracker
A171: Top Ranked Funds
A172: ETFs
A173: NFO
A174: Learn
A175: Evaluate
A176: Track
A177: Tools
A178: SEBI Re-categorisation
A179: Tax Saving FY19
A180: Commodities
A181: Insurance
A183: Video
A185: Managing Money with Moneycontrol
A186: The Udayan Show
A187: Ideas for Profit
A188: Markets@moneycontrol
A189: Commodities@Moneycontrol
A190: Podcast
A192: Digging Deeper with Moneycontrol
A193: Stock Picks of the Day
A194: Editor's Story of the Day
A195: A Morning Walk Down Dalal Street
A196: An Evening Walk Down Dalal Street
A197: Personal Finance
A199: Home
A200: Investing
A201: Insurance
A202: Banking
A203: Financial Planning
A204: Property
A205: Tools
A206: Video
A207: Ask Expert
A208: Explainer
A209: Portfolio
A210: Forum
A211: Be a Pro
A214: Home
A215: Stock Reports
A216: Ambareesh Balega
A217: CK Narayan
A218: Mitessh Thakkar
A219: Sudarshan Sukhani
A220: T Gnanasekar
A221: Mecklai Financial
A222: Power Your Trade
A223: Investment Watch
A224: Live TV
A225: Hindi
A226: Gujarati
A227: All Stocks
A228: App
A229: Subscriptions
A230: Specials
A231: Feedback
A232: Close Ad
A233: Verify your Moneycontrol account. Please verify your Email ID and Mobile Number today. Verify Now
A237: A Quick View
A238: Stocks in news
A239: Stocks you last visited
A240: Watchlist
A241: Portfolio
A242: Customize Stack 1 Customize Stack 2 Customize Stack 3 Customize Stack 4
A244: Customize
A245: Customize Stacks
A246: Customize Ticker
... 211 more rows

Sheet relianceindustries Ratios
A1: English
A2: Hindi
A3: Gujarati
A5: App
A7: Subscription
A8: Specials
A20: Quotes
A21: NAVs
A22: Commodities
A23: Futures & Options
A24: News
A25: Forum
A26: Notices
A27: Videos
A28: Glossary
A29: All
A31: Stocks
A32: Feedback
A33: Log In
A35: My Profile (Unverified)
A36: My Portfolio
A37: My Watchlist
A38: My Messages
A39: My Alerts
A41: Sign Up
A42: Logout
A50: Get App
A51: Log In
A52: Sign Up
A53: My Portfolio
A54: My Watchlist
A55: My Messages
A56: Sign out
A58: Quotes
A59: NAVs
A60: Commodities
A61: Futures & Options
A62: News
A63: Forum
A64: Notices
A65: Videos
A66: Glossary
A67: All
A68: Auriferous Aqua Farma , 519363
A69: View All
A70: Select Language
A71: English
A72: à¤¹à¤¿à¤‚à¤¦à¥€
A73: à¤—à¥à¤œà¤°à¤¾à¤¤à¥€
A74: Home
A75: Lok Sabha Election 2019
A77: Stock Premier League
A79: News
A80: Markets
A81: Portfolio
A82: Watchlist
A83: Forum
A84: Indian Indices
A85: Global Indices
A86: MoneySavers
A87: Live TV & Shows
A88: Video
A90: Commodities
A91: Currencies
A92: Mutual Funds
A93: Personal Finance
A94: Podcast
A96: Cryptocurrency
A97: Subscription
A98: Specials
A99: Invest Now
A100: Master Your Money
A101: SME Special
A102: Real Assets
A103: Travel Cafe
A104: Tech Control
A105: Home
A107: Companies
A108: Economy
A109: Property
A110: Politics
A111: Auto
A112: Cricket
A113: World
A114: Announcements
A115: News
A117: Business
A118: Markets
A119: Stocks
A120: Economy
A121: Research
A122: Mutual Funds
A123: Personal Finance
A124: Property
A125: Auto
A126: IPO
A127: Politics
A128: India
A129: World
A130: BFSI Tech
A132: Consumer Tech
A133: Startups
A134: Opinion
A136: Lok Sabha Election 2019
A138: Home
A139: Opinion
A140: Videos
A141: Photos
A142: Podcasts
A143: Modinomics Review
A144: Millennial News
A145: Election Dates
A146: Lok Sabha News
A147: Assembly Election 2019
A148: Markets
A150: Home
A151: Pre-Market
A152: Advice
A153: Technicals
A154: F&O
A155: Earnings
A156: IPO
A157: All Stats
A158: Indian Indices
A160: Global Markets
A161: Currencies
A162: Crypto
A163: Bonds
A164: Broker Research
A165: Tools
A166: Terminal
A167: Mutual Funds
A169: Home
A170: Performance Tracker
A171: Top Ranked Funds
A172: ETFs
A173: NFO
A174: Learn
A175: Evaluate
A176: Track
A177: Tools
A178: SEBI Re-categorisation
A179: Tax Saving FY19
A180: Commodities
A181: Insurance
A183: Video
A185: Managing Money with Moneycontrol
A186: The Udayan Show
A187: Ideas for Profit
A188: Markets@moneycontrol
A189: Commodities@Moneycontrol
A190: Podcast
A192: Digging Deeper with Moneycontrol
A193: Stock Picks of the Day
A194: Editor's Story of the Day
A195: A Morning Walk Down Dalal Street
A196: An Evening Walk Down Dalal Street
A197: Personal Finance
A199: Home
A200: Investing
A201: Insurance
A202: Banking
A203: Financial Planning
A204: Property
A205: Tools
A206: Video
A207: Ask Expert
A208: Explainer
A209: Portfolio
A210: Forum
A211: Be a Pro
A214: Home
A215: Stock Reports
A216: Ambareesh Balega
A217: CK Narayan
A218: Mitessh Thakkar
A219: Sudarshan Sukhani
A220: T Gnanasekar
A221: Mecklai Financial
A222: Power Your Trade
A223: Investment Watch
A224: Live TV
A225: Hindi
A226: Gujarati
A227: All Stocks
A228: App
A229: Subscriptions
A230: Specials
A231: Feedback
A232: Close Ad
A233: Verify your Moneycontrol account. Please verify your Email ID and Mobile Number today. Verify Now
A237: A Quick View
A238: Stocks in news
A239: Stocks you last visited
A240: Watchlist
A241: Portfolio
A242: Customize Stack 1 Customize Stack 2 Customize Stack 3 Customize Stack 4
A244: Customize
A245: Customize Stacks
A246: Customize Ticker
... 217 more rows

Sheet relianceindustries CF
A1: English
A2: Hindi
A3: Gujarati
A5: App
A7: Subscription
A8: Specials
A20: Quotes
A21: NAVs
A22: Commodities
A23: Futures & Options
A24: News
A25: Forum
A26: Notices
A27: Videos
A28: Glossary
A29: All
A31: Stocks
A32: Feedback
A33: Log In
A35: My Profile (Unverified)
A36: My Portfolio
A37: My Watchlist
A38: My Messages
A39: My Alerts
A41: Sign Up
A42: Logout
A50: Get App
A51: Log In
A52: Sign Up
A53: My Portfolio
A54: My Watchlist
A55: My Messages
A56: Sign out
A58: Quotes
A59: NAVs
A60: Commodities
A61: Futures & Options
A62: News
A63: Forum
A64: Notices
A65: Videos
A66: Glossary
A67: All
A68: Auriferous Aqua Farma , 519363
A69: View All
A70: Select Language
A71: English
A72: à¤¹à¤¿à¤‚à¤¦à¥€
A73: à¤—à¥à¤œà¤°à¤¾à¤¤à¥€
A74: Home
A75: Lok Sabha Election 2019
A77: Stock Premier League
A79: News
A80: Markets
A81: Portfolio
A82: Watchlist
A83: Forum
A84: Indian Indices
A85: Global Indices
A86: MoneySavers
A87: Live TV & Shows
A88: Video
A90: Commodities
A91: Currencies
A92: Mutual Funds
A93: Personal Finance
A94: Podcast
A96: Cryptocurrency
A97: Subscription
A98: Specials
A99: Invest Now
A100: Master Your Money
A101: SME Special
A102: Real Assets
A103: Travel Cafe
A104: Tech Control
A105: Home
A107: Companies
A108: Economy
A109: Property
A110: Politics
A111: Auto
A112: Cricket
A113: World
A114: Announcements
A115: News
A117: Business
A118: Markets
A119: Stocks
A120: Economy
A121: Research
A122: Mutual Funds
A123: Personal Finance
A124: Property
A125: Auto
A126: IPO
A127: Politics
A128: India
A129: World
A130: BFSI Tech
A132: Consumer Tech
A133: Startups
A134: Opinion
A136: Lok Sabha Election 2019
A138: Home
A139: Opinion
A140: Videos
A141: Photos
A142: Podcasts
A143: Modinomics Review
A144: Millennial News
A145: Election Dates
A146: Lok Sabha News
A147: Assembly Election 2019
A148: Markets
A150: Home
A151: Pre-Market
A152: Advice
A153: Technicals
A154: F&O
A155: Earnings
A156: IPO
A157: All Stats
A158: Indian Indices
A160: Global Markets
A161: Currencies
A162: Crypto
A163: Bonds
A164: Broker Research
A165: Tools
A166: Terminal
A167: Mutual Funds
A169: Home
A170: Performance Tracker
A171: Top Ranked Funds
A172: ETFs
A173: NFO
A174: Learn
A175: Evaluate
A176: Track
A177: Tools
A178: SEBI Re-categorisation
A179: Tax Saving FY19
A180: Commodities
A181: Insurance
A183: Video
A185: Managing Money with Moneycontrol
A186: The Udayan Show
A187: Ideas for Profit
A188: Markets@moneycontrol
A189: Commodities@Moneycontrol
A190: Podcast
A192: Digging Deeper with Moneycontrol
A193: Stock Picks of the Day
A194: Editor's Story of the Day
A195: A Morning Walk Down Dalal Street
A196: An Evening Walk Down Dalal Street
A197: Personal Finance
A199: Home
A200: Investing
A201: Insurance
A202: Banking
A203: Financial Planning
A204: Property
A205: Tools
A206: Video
A207: Ask Expert
A208: Explainer
A209: Portfolio
A210: Forum
A211: Be a Pro
A214: Home
A215: Stock Reports
A216: Ambareesh Balega
A217: CK Narayan
A218: Mitessh Thakkar
A219: Sudarshan Sukhani
A220: T Gnanasekar
A221: Mecklai Financial
A222: Power Your Trade
A223: Investment Watch
A224: Live TV
A225: Hindi
A226: Gujarati
A227: All Stocks
A228: App
A229: Subscriptions
A230: Specials
A231: Feedback
A232: Close Ad
A233: Verify your Moneycontrol account. Please verify your Email ID and Mobile Number today. Verify Now
A237: A Quick View
A238: Stocks in news
A239: Stocks you last visited
A240: Watchlist
A241: Portfolio
A242: Customize Stack 1 Customize Stack 2 Customize Stack 3 Customize Stack 4
A244: Customize
A245: Customize Stacks
A246: Customize Ticker
... 174 more rows
